Cogmind - Beta 15 @@@ ROGUE MODE // 2025.08.14 @ 20:45:11 Player: spider wisdom Result: Destroyed by D-53 Grenadier with Mini Grenade Launcher Performance ------------- Evolutions (0) 0 Regions Visited (4) 800 Robots Destroyed (3) 15 Value Destroyed (30) 30 Prototype IDs (0) 0 Alien Tech Used (0) 0 Bonus (60) 60 TOTAL SCORE: 905 Bonus ------- Follower Combat Kills 60 Cogmind --------- Core Integrity 0/250 Matter 300/300 Energy 68/100 System Corruption 0% Temperature Cool (2) Movement Walking (260) Ox2 Location -9/Mines Parts ------- > --- POWER (1) -------- (None) > --- PROPULSION (2) --- Aluminum Leg Aluminum Leg > --- UTILITY (2) ------ High-capacity Storage Unit ECM Suite > --- WEAPON (2) ------- Small Laser > --- INVENTORY (20) --- Aluminum Leg Small Laser Peak State ------------ > --- POWER ------------ Light Ion Engine > --- PROPULSION ------- Aluminum Leg Aluminum Leg > --- UTILITY ---------- High-capacity Storage Unit ECM Suite > --- WEAPON ----------- Small Laser Small Laser > --- INVENTORY -------- Small Laser [Rating: 7] Favorites ----------- Power Light Ion Engine Engine Light Ion Engine Propulsion Aluminum Leg Leg Aluminum Leg Utility High-capacity Storage Unit Device ECM Suite Storage High-capacity Storage Unit Weapon Small Laser Energy Gun Small Laser Build | -11 -10 -10 -10 -9 ------- Run | Yrd Mat Min Exi Min Slots Evolved . | . . . . . Power . | . . . . . Propulsion . | . . . . . Utility . | . . . . . Weapon . | . . . . . Parts Attached 7 | 5 1 1 . . Power 1 | 1 . . . . Engine 1 | 1 . . . . Core . | . . . . . Reactor . | . . . . . Propulsion 2 | 2 . . . . Treads . | . . . . . Leg 2 | 2 . . . . Wheel . | . . . . . Hover . | . . . . . Flight . | . . . . . Utility 2 | . 1 1 . . Device 1 | . . 1 . . Storage 1 | . 1 . . . Processor . | . . . . . Hackware . | . . . . . Protection . | . . . . . Artifact . | . . . . . Weapon 2 | 2 . . . . Energy Gun 2 | 2 . . . . Energy Cannon . | . . . . . Ballistic Gun . | . . . . . Ballistic Cannon . | . . . . . Launcher . | . . . . . Special Weapon . | . . . . . Impact Weapon . | . . . . . Slashing Weapon . | . . . . . Piercing Weapon . | . . . . . Special Melee Weapon . | . . . . . Unidentified Prototypes . | . . . . . Parts Lost 2 | . . . . 2 Power 1 | . . . . 1 Propulsion . | . . . . . Utility . | . . . . . Weapon 1 | . . . . 1 Highest Loss Streak 2 | . . . . 2 To Critical Strikes . | . . . . . Average Backups 1 | 1 . 1 2 2 Power . | . . . . . Propulsion . | . . . 1 1 Utility . | . . . . . Weapon . | . . 1 1 1 Tool/Special . | . . . . . Unused Backups 3 | . . . 1 2 Power 1 | . . . 1 . Propulsion 1 | . . . . 1 Utility . | . . . . . Weapon 1 | . . . . 1 Tool/Special . | . . . . . Average Slot Usage (%) 95 | . 72 94 100 99 Engine 13 | . 14 14 14 13 Leg 28 | . 28 28 28 28 Device 10 | . . 8 14 14 Storage 12 | . 1 14 14 14 Energy Gun 27 | . 28 28 28 27 Peak Build Rating 7 | 5 6 7 7 7 Average Rating 6 | 3 5 6 7 6 On Entrance 5 | . 5 6 7 7 Naked Turns . | . . . . . Heaviest Build 47 | 5 45 47 47 47 Greatest Support 20 | 20 20 20 20 20 Greatest Overweight (x) 2 | . 2 2 2 2 Average Overweight (x) 1 | . . 2 2 2 Largest Inventory Capacity 20 | 5 20 20 20 20 Average Capacity 18 | 5 7 20 20 20 Most Carried 4 | 4 2 2 3 2 Average Carried 1 | . . 1 2 2 Final Capacity 20 | 5 20 20 20 20 Final Carried 2 | . 1 2 2 2 Class Distribution -------------------- 100% | Mutant Dominant Class ---------------- Mutant | -10/Materials Mutant | -10/Mines Mutant | -10/Exiles Mutant | -9/Mines Resources | -11 -10 -10 -10 -9 ----------- Run | Yrd Mat Min Exi Min Matter Collected 266 | 89 . 177 . . Remotely . | . . . . . Salvage Created 49 | . . 49 . . Parts 3 | . . 3 . . Haulers Intercepted . | . . . . . Recyclers Shooed . | . . . . . Parts Field Recycled . | . . . . . Retrieved Matter . | . . . . . Parts Self-Destructed . | . . . . . Prevented . | . . . . . Kills | -11 -10 -10 -10 -9 ------- Run | Yrd Mat Min Exi Min Combat Hostiles Destroyed 3 | . . 3 . . Guns 3 | . . 3 . . Classes Destroyed 1 | . . 1 . . Swarmer 3 | . . 3 . . Best Kill Streak 2 | . . 2 . . Combat Bots Only 2 | . . 2 . . Max Kills in Single Turn 1 | . . 1 . . Gunslinging . | . . . . . Exploded . | . . . . . Melee . | . . . . . Uniques/NPCs Destroyed . | . . . . . Combat | -11 -10 -10 -10 -9 -------- Run | Yrd Mat Min Exi Min Hostile Shots Fired 37 | . . 29 . 8 Missed 13 | . . 13 . . Hits 24 | . . 16 . 8 Projectile 24 | . . 16 . 8 AOE 10 | . . . . 10 Critical Strikes 1 | . . 1 . . Damage Taken 524 | . . 125 . 399 Core 270 | . . 23 . 247 Absorbed by Shields . | . . . . . Core Remaining (%) 100 | 100 . . . . Volleys Fired 7 | . . 4 . 3 Largest 2 | . . 2 . 1 Hottest 80 | . . 80 . 40 Shots Fired 11 | . . 8 . 3 Gun 11 | . . 8 . 3 Cannon . | . . . . . Launcher . | . . . . . Special . | . . . . . Kinetic . | . . . . . Thermal 11 | . . 8 . 3 Explosive . | . . . . . Electromagnetic . | . . . . . Robot Hit Streak 9 | . . 6 . 9 Robot Miss Streak 1 | . . 1 . . Penetration Max . | . . . . . Secondary Targets 1 | . . 1 . . Max Gunslinging Chain 1 | . . 1 . . Shots Hit Robots 10 | . . 7 . 3 Core Hits 4 | . . 3 . 1 Critical Kills . | . . . . . Critical Parts Destroyed . | . . . . . Critical Strikes . | . . . . . Melee Attacks . | . . . . . Impact . | . . . . . Slashing . | . . . . . Piercing . | . . . . . Sneak Attacks . | . . . . . Combat Hostiles . | . . . . . Follow-up Attacks . | . . . . . Damage Inflicted 113 | . . 80 . 33 Guns 106 | . . 73 . 33 Cannons . | . . . . . Explosions . | . . . . . Melee . | . . . . . Ramming 7 | . . 7 . . Kinetic . | . . . . . Thermal 106 | . . 73 . 33 Explosive . | . . . . . Electromagnetic . | . . . . . Impact . | . . . . . Slashing . | . . . . . Piercing . | . . . . . Highest Corruption . | . . . . . Average Corruption . | . . . . . Corruption Purged . | . . . . . Corruption Blocked . | . . . . . Overload Shots . | . . . . . Overflow Damage . | . . . . . Projectiles . | . . . . . Explosions . | . . . . . Melee . | . . . . . Knockbacks . | . . . . . Impact . | . . . . . Kinetic . | . . . . . Secondary . | . . . . . Self-Inflicted Damage . | . . . . . Shots . | . . . . . Rammed . | . . . . . Targets Rammed 1 | . . 1 . . Kicked 1 | . . 1 . . Crushed . | . . . . . Highest Temperature 54 | . . 54 . . Average Temperature 25 | . . 25 . . Received Heat Transfer . | . . . . . Siege Activations . | . . . . . Martial Activations . | . . . . . Shielding Activations . | . . . . . Robots Disrupted . | . . . . . Combat Hostiles . | . . . . . Robots Corrupted . | . . . . . Combat Hostiles . | . . . . . Parts Fried . | . . . . . Impact Corruptions . | . . . . . Robots Melted . | . . . . . Combat Hostiles . | . . . . . Parts Melted . | . . . . . Heat Transferred 250 | . . 175 . 75 Parts Sabotaged . | . . . . . Parts Stolen . | . . . . . Parts Stripped . | . . . . . Power Chain Reactions . | . . . . . Alert | -11 -10 -10 -10 -9 ------- Run | Yrd Mat Min Exi Min Maximum Alert Level . | . . . . . Low Security (%) 100 | 100 100 100 . 100 Level 1 . | . . . . . Level 2 . | . . . . . Level 3 . | . . . . . Level 4 . | . . . . . Level 5 . | . . . . . High Security . | . . . . . Max Security . | . . . . . Peak Influence 60 | . . 60 . . Initial . | . . . . . Average 5 | . . 10 . . Influence Increases 126 | . . 126 . . Destroy 0b10 Robot/C 100 | . . 100 . . Destroy Leader 20 | . . 20 . . Allied During Kill 6 | . . 6 . . Influence Decreases 126 | . . 126 . . Time Decay 126 | . . 126 . . Squads Dispatched . | . . . . . Investigation . | . . . . . Extermination . | . . . . . Reinforcement . | . . . . . Assault . | . . . . . Garrison . | . . . . . Intercept . | . . . . . Searches Triggered . | . . . . . Construction Impeded . | . . . . . Haulers Reinforced . | . . . . . Active Scanning Responses . | . . . . . Cargo Convoy Interrupts . | . . . . . Stealth | -11 -10 -10 -10 -9 --------- Run | Yrd Mat Min Exi Min Distress Signals . | . . . . . Communications Jammed . | . . . . . Distress Signals . | . . . . . Times Spotted 6 | . . 4 . 2 Peak Tracking Total 3 | . . 3 . 2 Tactical Retreats 1 | . . 1 . . Traps | -11 -10 -10 -10 -9 ------- Run | Yrd Mat Min Exi Min Traps Triggered . | . . . . . Indirectly . | . . . . . Trap Hack Attempts . | . . . . . Triggered . | . . . . . Disarmed . | . . . . . Reprogrammed . | . . . . . Reused . | . . . . . Traps Extracted . | . . . . . Installed . | . . . . . Triggered . | . . . . . Machines | -11 -10 -10 -10 -9 ---------- Run | Yrd Mat Min Exi Min Machines Disabled . | . . . . . Max in Single Turn . | . . . . . Machines Repaired . | . . . . . Machines Dismantled . | . . . . . Machines Sabotaged . | . . . . . Overloaded Fab Kills . | . . . . . Hacking | -11 -10 -10 -10 -9 --------- Run | Yrd Mat Min Exi Min Machines Accessed 3 | . . . 3 . Terminals . | . . . . . Fabricators . | . . . . . Repair Stations . | . . . . . Recycling Units . | . . . . . Scanalyzers . | . . . . . Garrison Access . | . . . . . Total Hacks 19 | . . . 19 . Successful 19 | . . . 19 . Failed . | . . . . . Catastrophic . | . . . . . Database Lockouts . | . . . . . Manual 2 | . . . 2 . Terminals . | . . . . . Fabricators . | . . . . . Repair Stations . | . . . . . Recycling Units . | . . . . . Scanalyzers . | . . . . . Garrison Access . | . . . . . Terminal Hacks 19 | . . . 19 . Record 19 | . . . 19 . Fabricator Hacks . | . . . . . Repair Station Hacks . | . . . . . Recycling Unit Hacks . | . . . . . Scanalyzer . | . . . . . Garrison Access Hacks . | . . . . . Unauthorized Hacks . | . . . . . Terminals . | . . . . . Fabricators . | . . . . . Repair Stations . | . . . . . Recycling Units . | . . . . . Scanalyzers . | . . . . . Garrison Access . | . . . . . Data Cores Recovered . | . . . . . Used . | . . . . . Hacking Detections . | . . . . . Full Trace Events . | . . . . . Feedback Events . | . . . . . Feedback Blocked . | . . . . . Robot Schematics Acquired . | . . . . . Robots Built . | . . . . . Authchips . | . . . . . Time . | . . . . . Total Robot Build Rating . | . . . . . Part Schematics Acquired . | . . . . . Parts Built . | . . . . . Authchips . | . . . . . Time . | . . . . . Total Part Build Rating . | . . . . . Parts Repaired . | . . . . . Time . | . . . . . Parts Recycled . | . . . . . Recycled Matter . | . . . . . Retrieved Matter . | . . . . . Retrieved Components . | . . . . . Parts Scanalyzed . | . . . . . Part Schematics Acquired . | . . . . . Parts Damaged . | . . . . . Bothacking | -11 -10 -10 -10 -9 ------------ Run | Yrd Mat Min Exi Min Used RIF Installer . | . . . . . Robots Hacked . | . . . . . Non-combat . | . . . . . Combat . | . . . . . Robot Hacks Applied . | . . . . . Relay Couplers Released . | . . . . . Fabnet Peak Effective % . | . . . . . Robots Rewired . | . . . . . Allies Hacked . | . . . . . Hacks Repelled . | . . . . . Allies | -11 -10 -10 -10 -9 -------- Run | Yrd Mat Min Exi Min Total Allies 5 | . . 2 . 3 Largest Group 3 | . . 2 2 3 Highest-Rated Group 47 | . . 47 47 40 Highest-Rated Ally 31 | . . 31 31 16 Total Orders . | . . . . . Ally Attacks 11 | . . 7 . 4 Total Damage 155 | . . 127 . 28 Kills 2 | . . 2 . . Allies Corrupted . | . . . . . Allies Melted . | . . . . . Intel | -11 -10 -10 -10 -9 ------- Run | Yrd Mat Min Exi Min Active Infowar (turns) 1426 | . . 407 656 363 ECM 1426 | . . 407 656 363 Robot Analysis Total . | . . . . . Derelict Logs Recovered 1 | . . 1 . . Drone Launches . | . . . . . Drone Recoveries . | . . . . . Exploration | -11 -10 -10 -10 -9 ------------- Run | Yrd Mat Min Exi Min Turns Passed 1858 | 42 161 636 656 363 Spaces Moved 784 | 34 122 238 252 138 Core 11 | 11 . . . . Treads . | . . . . . Legs 773 | 23 122 238 252 138 Wheels . | . . . . . Hover . | . . . . . Flight . | . . . . . Fastest Speed 50 | 50 120 260 260 260 Average Speed 232 | 97 131 260 260 260 Slowest Speed 260 | 120 260 260 260 260 Overloaded Moves . | . . . . . Propulsion Burnouts . | . . . . . Robots Hopped . | . . . . . Potential Cave-ins . | . . . . . Cave-ins Triggered . | . . . . . Exploration Rate (%) 35 | 3 29 46 62 38 Regions Visited 4 Branch Regions 3 Pre-discovered Areas . | . . . . . Known Exits Taken . | . . . . . Unknown Exits Taken 4 | 1 1 1 1 . Scrap Searched 2 | . . 1 . 1 Spaces Dug . | . . . . . Terrain Destroyed . | . . . . . Melee . | . . . . . Projectile . | . . . . . AOE . | . . . . . Terrain Rammed . | . . . . . Walls Destroyed . | . . . . . Machines Disabled . | . . . . . Actions | -11 -10 -10 -10 -9 --------- Run | Yrd Mat Min Exi Min Total 809 | 43 124 247 254 141 Wait 3 | . . 2 1 . Move 780 | 33 121 237 251 138 Hop . | . . . . . Pick Up 10 | 5 2 2 1 . Fast Attach . | . . . . . Attach 7 | 5 1 1 . . Detach . | . . . . . Swap . | . . . . . Drop 1 | . . . 1 . Fire 7 | . . 4 . 3 Melee . | . . . . . Ram . | . . . . . Kick 1 | . . 1 . . Crush . | . . . . . Escape Stasis . | . . . . . Rewire . | . . . . . Trap . | . . . . . Miscellaneous . | . . . . . Route ------- -11/Scrapyard -10/Materials (discovered 2 exits: [*Mat] / [*Min]) -10/Mines -10/Exiles (discovered 2 exits: [*Min x2]) -9/Mines (discovered 2 exits: [*Mat x2]) History --------- Turn | Location | Event 10 | -11/Scrapyard | Discovered new exit (range 16) 43 | -11/Scrapyard | Entered Materials 61 | -10/Materials | Discovered new exit (range 14) 81 | -10/Materials | Met 8R-AWN 144 | -10/Materials | Discovered new exit (range 13) 204 | -10/Materials | Entered Mines 207 | -10/Mines | Followed 8R-AWN into the Mines 315 | -10/Mines | Build established: Mutant 565 | -10/Mines | Learned 4 Materials zone layouts 825 | -10/Mines | Discovered new exit (range 5) 840 | -10/Mines | Entered Exiles 840 | -10/Exiles | Accompanied by 2 allies 870 | -10/Exiles | Led the pair of lost Derelicts to a safe place 880 | -10/Exiles | Discovered new exit (range 15) 913 | -10/Exiles | Welcomed by 8R-AWN 955 | -10/Exiles | Met EX-HEX 1043 | -10/Exiles | Met EX-BIN 1321 | -10/Exiles | Met EX-DEC 1436 | -10/Exiles | Discovered new exit (range 14) 1496 | -10/Exiles | Entered Mines 1530 | -9/Mines | Discovered new exit (range 7) 1546 | -9/Mines | Discovered new exit (range 15) 1717 | -9/Mines | Assisted by bots powering up and referring to "LRC-V3" 1794 | -9/Mines | Assembled infested the area 1799 | -9/Mines | Assisted by a Guerilla fighting off Assembled 1852 | -9/Mines | Core integrity fell below 50% 1856 | -9/Mines | Core integrity fell below 20% 1859 | -9/Mines | Destroyed by D-53 Grenadier with Mini Grenade Launcher Last Messages --------------- 01720_ Searching scrap... 01720_ Found Shotgun. 01720_ Found 51 Matter. 01765_ K-01 Serf collects debris. 01772_ T-07 Excavator is excavating. 01778_ K-01 Serf collects debris. 01794_ ALERT: Infestation in the mines, dispatching Demolisher response squad. 01799_ A derelict emerges from the shadows: "You need to get out of here! I've been tracking a group of Assembled to figure out where they're coming from, and they're closing on this area, come on!" 01839_ as-52458 destroyed. 01840_ Sml. Laser destroyed. 01842_ Trooper 2b destroyed. 01845_ The unstable cave ceiling collapses. 01845_ Lgt. Ion Engine destroyed. 01845_ Mercenary 2a destroyed. 01845_ Trooper 2a destroyed. 01849_ T-07 Excavator destroyed. 01852_ U-05 Engineer lays Concrete. Map ----- +----------------------------------------------------+ | | | | | | | | | | | | | ?????????????????????????????????????????????????? | | ?????????????????????????????????????????????????? | | ##???????????????????????????????????????????????? | | #??????????????????????????????????????????????? | | #??????????????????????????#### ??????????????? | | ##?????###???????????????# ???????????????? | | ##???? ????######????# ????????????????? | | ##??? ????# ##??# ?????????????????? | | ### #### #????# ??# #??????????????????? | | #### ## #????# #?# #???????????????????? | | [## ## #????# #? #????????????????????? | | % # ## ## #????# ## #????????????????????? | | ## ## #????## ### #????????????????????? | | ## ## ###### #????????????????????? | | ## #????????????????????? | | ### #????????????????????? | | ##?#### ##### ##????????????????????? | | #?????# ??# #????????????????????? | | #####????? ?# u #????????????????????? | | #???????? ### @ #????????????????????? | | ????????# #?# #????????????????????? | | ????????# ##?## """ ??????????????? | | ????????# #???# ## """???????????????? | | ????????? ???# #??"""???????????????? | | ?????????# ???# ! # ##????g???????????????? | | ?????????### ??# d #?????????????????????? | | ????????????# ??####d ####?????????????????????? | | ????????????? ?????# ##????????????????????????? | | ?????????????# ?????# #?????????????????????????? | | ??????????????##????? #?????????????????????????? | | ????????????????????? ?????????????????????????? | | ???????????????????? = ?????????????????????????? | | ???????????????????? ?????????????????????????? | | ???????????????????? = ?????????????????????????? | | ???????????????????? ?????????????????????????? | | ??????? #??????????? ????????????????????????? | | ????## ???????????# ????????????????????????? | | #?? ??????????? ?????????????????????????? | | ## ???????????????????????????????????????? | | #????????????????????????????????????????????? | | #????????????????????????????????????????????? | | #####????????????????????????????????????????????? | | #????????????????????????????????????????????????? | | ?????????????????????????????????????????????????? | +----------------------------------------------------+ Best States ------------- Heat Dissipation 25 Energy Generation 10 Energy Capacity 125 Matter Stores 300 Matter Capacity 300 Sight Range 16 Terrain Scan Density 10 ECM Strength 1 Evasion (%) 55 Item Schematics ----------------- None Robot Schematics ------------------ None Fabricated ------------ Nothing Repaired ---------- Nothing Alien Tech Used ----------------- None Achievements -------------- Librarian Challenges ------------ None Game ------ Seed TargetingSchematicMatterbank Manual? 0 Play Time 00:11:24 Cumulative 7.4 hours Start 2025.08.14 @ 18:22:43 End 2025.08.14 @ 20:45:11 Sessions 3 Manual Loads 0 Difficulty Rogue Special Mode None Game No. 25 Rogue 19 Adventurer 6 Explorer 0 Win Type - Total 0 Types 0/0/0/0/0/0/0/0/0/0 Lore% 6 Gallery% 14 Achievement% 14 Wizard Run 0 Options --------- Layout 0 ASCII 0 Keyboard 1 Movement Numpad Keybinds 0 Fullscreen 1 Font 24/Proggy Map View 76x50 Zoom Use 0% Tactical HUD 1 Map Filters NONE Filters NONE Steam 1 RUN: 737445ae-d283-4d7b-996b-82739283d625